bitfinex/quotes_BTCUSD_20241011
["timestamp","ask_amount","ask_price","bid_price","bid_amount"]
[1728661733944,0.000818,62191.0,62190.0,0.34219731]
[1728661734369,0.000818,62191.0,62190.0,0.34419731]
[1728661734583,0.000818,62191.0,62190.0,0.1829733]
[1728661734805,0.000818,62191.0,62190.0,0.1899733]
[1728661736689,0.000818,62191.0,62190.0,0.35119731]
[1728661737756,0.000818,62191.0,62190.0,0.34419731]
[1728661737960,0.000818,62191.0,62190.0,0.33619731]
[1728661738172,0.000818,62191.0,62190.0,0.35019731]
[1728661738399,0.000818,62191.0,62190.0,0.36319731]
[1728661739529,0.000818,62191.0,62190.0,0.34919731]
[1728661739762,0.000818,62191.0,62190.0,0.36019731]
[1728661742379,0.100818,62218.0,62193.0,0.007]
[1728661742621,0.100818,62218.0,62190.0,0.29940031]
[1728661742622,0.000818,62218.0,62217.0,0.160727]
[1728661742862,0.01584068,62218.0,62217.0,0.160727]
[1728661743079,0.000818,62218.0,62217.0,0.160727]
[1728661743767,0.03882698,62218.0,62217.0,0.160727]
[1728661744411,0.000818,62218.0,62217.0,0.167727]
[1728661744614,0.03882122,62218.0,62217.0,0.007]
[1728661744821,0.03882122,62218.0,62217.0,0.167727]
[1728661745041,0.03882105,62218.0,62217.0,0.167727]
[1728661745244,0.03882105,62218.0,62217.0,0.170727]
[1728661745721,0.03882105,62218.0,62217.0,0.163727]
[1728661746232,0.20992105,62218.0,62217.0,0.005]
[1728661746456,0.5597275,62218.0,62217.0,0.005]
[1728661746918,0.22491901,62218.0,62217.0,0.002]
[1728661747110,0.22491901,62218.0,62213.0,0.482208]
[1728661747111,0.023,62217.0,62214.0,0.2424262]
[1728661747327,0.01500305,62216.0,62215.0,0.160732]
[1728661747534,0.03800305,62216.0,62215.0,0.160732]
[1728661747715,0.023,62217.0,62216.0,0.16073]
[1728661748113,0.000818,62218.0,62216.0,0.2424262]
[1728661748318,0.000818,62218.0,62217.0,0.160727]
[1728661750356,0.000818,62218.0,62217.0,0.4031532]
[1728661750572,0.000818,62218.0,62217.0,0.160727]
[1728661751449,0.000818,62218.0,62217.0,0.16394126]
[1728661752081,0.000818,62218.0,62217.0,0.16794126]
[1728661752738,0.000818,62218.0,62217.0,0.17094126]
[1728661753605,0.000818,62218.0,62217.0,0.167727]
[1728661753832,0.000818,62218.0,62217.0,0.164727]
[1728661754517,0.102518,62218.0,62217.0,0.164727]
[1728661754731,0.102518,62218.0,62217.0,0.160727]
[1728661754965,0.023,62217.0,62200.0,0.1]
[1728661755217,0.023,62212.0,62208.0,0.16075]
[1728661755450,0.21208145,62210.0,62208.0,0.16075]
[1728661755676,0.21208145,62210.0,62209.0,0.160748]
[1728661755918,0.023,62210.0,62208.0,0.160748]
[1728661756387,0.023,62210.0,62209.0,0.160748]
[1728661756643,0.023,62210.0,62199.0,0.2424262]
[1728661756644,0.023,62210.0,62205.0,0.321516]
[1728661756879,0.023,62210.0,62209.0,0.003]
[1728661757099,0.29412315,62210.0,62209.0,0.003]
[1728661757309,0.29612315,62210.0,62209.0,0.003]
[1728661757597,0.39412315,62210.0,62209.0,0.003]
[1728661757815,0.48882315,62210.0,62209.0,0.007]
[1728661758026,0.6829046,62210.0,62209.0,0.003]
[1728661758240,0.023,62207.0,62200.0,0.160771]
[1728661758457,0.023,62205.0,62201.0,0.160768]
[1728661758676,0.023,62205.0,62201.0,0.321533]
[1728661758907,0.023,62208.0,62202.0,0.160766]
[1728661759364,0.023,62208.0,62203.0,0.160763]
[1728661759594,0.023,62208.0,62202.0,0.160765]
[1728661759804,0.183752,62208.0,62201.0,0.160768]
[1728661760019,0.183752,62208.0,62199.0,0.5639712]
[1728661760020,0.023,62208.0,62202.0,0.160766]
[1728661760236,0.023,62208.0,62203.0,0.160762]
[1728661760446,0.023,62209.0,62204.0,0.160759]
[1728661761074,0.023,62209.0,62203.0,0.160762]
[1728661761300,0.023,62209.0,62199.0,0.2424262]
[1728661761535,0.023,62209.0,62200.0,0.321541]
[1728661762191,0.023,62209.0,62204.0,0.321522]
[1728661762407,0.023,62209.0,62206.0,0.160755]
[1728661763105,0.023,62209.0,62205.0,0.160757]
[1728661763759,0.023,62209.0,62199.0,0.2424262]
[1728661763963,0.023,62209.0,62203.0,0.160763]
[1728661764415,0.023,62209.0,62205.0,0.160758]
[1728661764860,0.023,62209.0,62203.0,0.160763]
[1728661765062,0.023,62206.0,62199.0,0.2424262]
[1728661765470,0.023,62204.0,62200.0,0.160771]
[1728661765719,0.023,62204.0,62199.0,0.2424262]
[1728661765929,0.023,62204.0,62199.0,0.4031992]
[1728661766137,0.160757,62206.0,62199.0,0.4031992]
[1728661766352,0.0762,62206.0,62201.0,0.160768]
[1728661766565,0.0762,62206.0,62193.0,0.2424262]
[1728661766566,0.34985545,62200.0,62193.0,0.2424262]
[1728661766775,0.160771,62201.0,62193.0,0.2424262]
[1728661766988,0.160771,62201.0,62194.0,0.160786]
[1728661767201,0.160771,62201.0,62193.0,0.2424262]
[1728661767202,0.160767,62202.0,62195.0,0.160784]
[1728661767409,0.160767,62202.0,62196.0,0.160781]
[1728661767410,0.16122401,62202.0,62196.0,0.160781]
[1728661767628,0.18422401,62202.0,62201.0,0.001]
[1728661767840,0.18422401,62202.0,62196.0,0.160781]
[1728661767841,0.18422401,62202.0,62198.0,0.160776]
[1728661768050,0.023,62201.0,62199.0,0.003]
[1728661768476,0.023,62201.0,62198.0,0.160776]
[1728661768696,0.023,62201.0,62200.0,0.2424262]
[1728661768917,0.023,62201.0,62200.0,0.160771]
[1728661769378,0.023,62205.0,62202.0,0.160766]
[1728661769814,0.023,62205.0,62201.0,0.160768]
[1728661770032,0.54662166,62204.0,62197.0,0.160778]
[1728661770243,0.54662166,62204.0,62196.0,0.2424262]
[1728661770244,0.023,62199.0,62196.0,0.2424262]
[1728661770670,0.023,62200.0,62196.0,0.2424262]
[1728661771078,0.1687,62199.0,62194.0,0.160785]
[1728661771293,0.023,62198.0,62192.0,0.321583]
[1728661771496,0.1687,62199.0,62196.0,0.001]
[1728661771497,0.0917,62199.0,62196.0,0.001]
[1728661771704,0.0917,62199.0,62192.0,0.321583]
[1728661772194,0.25292401,62199.0,62193.0,0.160789]
[1728661772415,0.25292401,62199.0,62190.0,0.323229]
[1728661772640,0.18908145,62196.0,62190.0,0.001638]
[1728661772847,0.18908145,62192.0,62190.0,0.001638]
[1728661773705,0.34987345,62192.0,62190.0,0.001638]
[1728661773917,0.18908145,62192.0,62190.0,0.001638]
[1728661774124,0.53409746,62192.0,62190.0,0.001638]
[1728661774350,0.63409746,62192.0,62190.0,0.001638]
[1728661774567,0.80089746,62192.0,62190.0,0.001638]
[1728661774777,0.9162138,62192.0,62190.0,0.001638]
[1728661775209,0.80089746,62192.0,62190.0,0.001638]
[1728661775887,0.80589746,62192.0,62190.0,0.001638]
[1728661776495,0.80689746,62192.0,62190.0,0.001638]
[1728661777645,0.80589746,62192.0,62190.0,0.001638]
[1728661777866,0.80789746,62192.0,62191.0,0.003638]
[1728661778536,0.80589746,62192.0,62191.0,0.002638]
[1728661778944,0.80789746,62192.0,62191.0,0.003638]
[1728661779792,0.84816618,62192.0,62191.0,0.003638]
[1728661780841,0.35422401,62192.0,62191.0,0.003638]
[1728661781058,0.002,62192.0,62191.0,0.003638]
[1728661781696,0.1,62195.0,62191.0,0.002638]
[1728661781898,0.16122401,62194.0,62191.0,0.003638]
[1728661782156,0.002,62192.0,62191.0,0.164432]
[1728661782367,0.16122401,62194.0,62191.0,0.002638]
[1728661782991,0.16122401,62194.0,62191.0,0.001638]
[1728661783401,0.16122401,62194.0,62191.0,0.003638]
[1728661783557,0.16122401,62194.0,62191.0,0.001638]
[1728661783755,0.16122401,62194.0,62191.0,0.002638]
[1728661783960,0.16122401,62194.0,62191.0,0.004638]
[1728661784157,0.16122401,62194.0,62191.0,0.002638]
[1728661784362,0.16122401,62194.0,62191.0,0.001638]
[1728661784560,0.16222401,62194.0,62191.0,0.001638]
[1728661785152,0.16122401,62194.0,62191.0,0.001638]
[1728661785360,0.16222401,62194.0,62191.0,0.001638]
[1728661786762,0.16122401,62194.0,62191.0,0.002638]
[1728661787010,0.16222401,62194.0,62191.0,0.002638]
[1728661787444,0.16222401,62194.0,62192.0,0.16079]
[1728661787645,0.16222401,62194.0,62191.0,0.163432]
[1728661787646,0.16122401,62194.0,62191.0,0.163432]
[1728661788045,0.091,62198.0,62191.0,0.002638]
[1728661788254,0.06226658,62213.0,62191.0,0.002638]
[1728661788255,0.005,62209.0,62202.0,0.160765]
[1728661788452,0.005,62209.0,62197.0,0.18908145]
[1728661788453,0.32197501,62208.0,62200.0,0.16077]
[1728661788655,0.32197501,62208.0,62197.0,0.160778]
[1728661788656,0.32697501,62208.0,62197.0,0.160778]
[1728661789011,0.160756,62206.0,62199.0,0.4031992]
[1728661789165,0.16122401,62205.0,62199.0,0.4031992]
[1728661789587,0.023,62204.0,62199.0,0.4031992]
[1728661789752,0.16122401,62203.0,62202.0,0.001]
[1728661789962,0.18422401,62203.0,62202.0,0.001]
[1728661790159,0.18422401,62203.0,62199.0,0.4031992]
[1728661791113,0.18422401,62203.0,62200.0,0.160771]
[1728661791259,0.18422401,62203.0,62202.0,0.001]
[1728661792656,0.18422401,62203.0,62199.0,0.2424262]
[1728661793498,0.18422401,62203.0,62199.0,0.2434262]
[1728661793934,0.18422401,62203.0,62199.0,0.001]
[1728661794153,0.34498901,62203.0,62199.0,0.001]
[1728661795534,0.34498901,62203.0,62197.0,0.160778]
[1728661796316,0.34698901,62203.0,62197.0,0.160778]
[1728661796521,0.34698901,62203.0,62196.0,0.2424262]
[1728661796522,0.16077,62201.0,62196.0,0.2424262]
[1728661796729,0.18422401,62203.0,62196.0,0.2424262]
[1728661796954,0.18422401,62203.0,62191.0,0.323223]
[1728661796955,0.28758145,62201.0,62191.0,0.323223]
[1728661797165,0.160775,62199.0,62195.0,0.2424262]
[1728661797349,0.60957446,62201.0,62195.0,0.2424262]
[1728661797546,0.60957546,62201.0,62195.0,0.2424262]
[1728661797745,0.44880546,62201.0,62195.0,0.2424262]
[1728661797946,0.44880546,62201.0,62195.0,0.4032102]
[1728661798166,0.60957546,62201.0,62195.0,0.4032102]
[1728661798371,0.44880546,62201.0,62195.0,0.4032102]
[1728661798568,0.44880546,62201.0,62196.0,0.160781]
[1728661798771,0.44880546,62201.0,62197.0,0.160779]
[1728661798977,0.44880546,62201.0,62195.0,0.5639952]
[1728661799380,0.44880546,62201.0,62195.0,0.2424262]
[1728661799647,0.160774,62199.0,62195.0,0.2424262]
[1728661799854,0.160775,62199.0,62195.0,0.2424262]
[1728661800064,0.160775,62199.0,62195.0,0.2444262]
[1728661800483,0.37286345,62196.0,62195.0,0.003]
[1728661800684,0.53408746,62196.0,62195.0,0.003]
[1728661800812,0.53408746,62196.0,62195.0,0.002]
[1728661801232,0.53408746,62196.0,62195.0,0.003]
[1728661801457,0.18422401,62196.0,62195.0,0.003]
[1728661801635,0.12016936,62203.0,62197.0,0.160779]
[1728661801636,0.023,62201.0,62197.0,0.160779]
[1728661801841,0.023,62199.0,62198.0,0.160776]
[1728661802054,0.18422401,62199.0,62196.0,0.160781]
[1728661802317,0.18422401,62199.0,62196.0,0.16078]
[1728661802730,0.18504301,62199.0,62196.0,0.321563]
[1728661802934,0.000819,62199.0,62196.0,0.51064445]
[1728661803137,0.000819,62199.0,62198.0,0.160776]
[1728661803559,0.000819,62199.0,62197.0,0.321558]
[1728661803776,0.000819,62199.0,62198.0,0.327376]
[1728661804396,0.000819,62199.0,62198.0,0.331376]
[1728661805228,0.000819,62199.0,62198.0,0.336376]
[1728661805460,0.000819,62199.0,62198.0,0.331376]
[1728661805928,0.000819,62199.0,62198.0,0.341376]
[1728661806167,0.000819,62199.0,62198.0,0.337376]
[1728661806386,0.000819,62199.0,62198.0,0.49860001]
[1728661806592,0.000819,62199.0,62198.0,0.50360001]
[1728661806994,0.000819,62199.0,62198.0,0.49860001]
[1728661807443,0.000819,62199.0,62198.0,0.51160001]
[1728661807871,0.000819,62199.0,62198.0,0.49860001]
[1728661808083,0.000819,62199.0,62198.0,0.48860001]
[1728661808300,0.000819,62199.0,62198.0,0.49860001]
[1728661808536,0.000819,62199.0,62198.0,0.51260001]
[1728661809017,0.000819,62199.0,62198.0,0.49860001]
[1728661809256,0.000819,62199.0,62198.0,0.50860001]
[1728661809481,0.000819,62199.0,62198.0,0.48860001]
[1728661809911,0.000819,62199.0,62198.0,0.60660001]
[1728661810129,0.000819,62199.0,62198.0,0.61560001]
[1728661810960,0.000819,62199.0,62198.0,0.60660001]
[1728661811180,0.000819,62199.0,62198.0,0.60560001]
[1728661811422,0.000819,62199.0,62198.0,0.61960001]
[1728661811860,0.000819,62199.0,62198.0,0.63389975]
[1728661812690,0.000819,62199.0,62198.0,0.62189975]
[1728661813103,0.000819,62199.0,62198.0,0.63389975]
[1728661813306,0.000819,62199.0,62198.0,0.8249812]
[1728661813509,0.000819,62199.0,62198.0,1.4742682]
[1728661813931,0.000819,62199.0,62198.0,1.28518675]
[1728661814123,0.000819,62199.0,62198.0,1.27318675]
[1728661814390,0.000819,62199.0,62198.0,1.4482682]
[1728661814600,0.000819,62199.0,62198.0,1.4622682]
[1728661814810,0.000819,62217.0,62216.0,0.16073]
[1728661815012,0.000819,62217.0,62216.0,0.42872557]
[1728661815268,0.000819,62217.0,62216.0,0.42551145]
[1728661816455,0.000819,62217.0,62216.0,0.52081145]
[1728661816657,0.000819,62217.0,62216.0,0.68203546]
[1728661817086,0.000819,62217.0,62216.0,0.68503546]
[1728661817558,0.000819,62217.0,62216.0,0.68203546]
[1728661817763,0.000819,62217.0,62216.0,0.69003546]
[1728661818002,0.000819,62217.0,62216.0,0.68503546]
[1728661818211,0.000819,62217.0,62216.0,0.68903546]
[1728661818420,0.000819,62217.0,62216.0,0.68503546]
[1728661818835,0.000819,62217.0,62216.0,0.69303546]
[1728661819049,0.000819,62217.0,62216.0,0.67703546]
[1728661819472,0.000819,62217.0,62216.0,0.52281145]
[1728661819686,0.000819,62217.0,62216.0,0.24343]
[1728661819895,0.000819,62217.0,62216.0,0.24243]
[1728661820112,0.000819,62217.0,62216.0,0.24543]
[1728661820744,0.000819,62217.0,62216.0,0.24243]
[1728661821123,0.000819,62217.0,62216.0,0.23643]
[1728661821335,0.000819,62217.0,62216.0,0.17496792]
[1728661821493,0.000819,62217.0,62216.0,0.17796792]
[1728661821695,0.000819,62217.0,62216.0,0.17496792]
[1728661821894,0.000819,62217.0,62216.0,0.17596792]
[1728661822510,0.000819,62217.0,62216.0,0.16373]
[1728661822725,0.000819,62217.0,62216.0,0.003]
[1728661822931,0.000819,62217.0,62216.0,0.001]
[1728661823369,0.000819,62217.0,62216.0,0.004]
[1728661823772,0.000819,62217.0,62216.0,0.001]
[1728661824194,0.000819,62217.0,62216.0,0.008]
[1728661824810,0.000819,62217.0,62216.0,0.007]
[1728661825239,0.000819,62217.0,62216.0,0.011]
[1728661825487,0.000819,62217.0,62216.0,0.004]
[1728661825690,0.000819,62217.0,62216.0,0.009]
[1728661826363,0.000819,62217.0,62216.0,0.004]
[1728661826574,0.000819,62217.0,62216.0,0.16673]
[1728661826741,0.000819,62217.0,62216.0,0.002]
[1728661826957,0.000819,62217.0,62216.0,0.16273]
[1728661827175,0.000819,62217.0,62216.0,0.002]
[1728661828811,0.000819,62217.0,62216.0,0.005]
[1728661829239,0.000819,62217.0,62216.0,0.16573]
[1728661829458,0.000819,62217.0,62216.0,0.005]
[1728661829662,0.000819,62217.0,62216.0,0.16573]
[1728661830528,0.000819,62217.0,62216.0,0.16273]
[1728661831630,0.000819,62217.0,62216.0,0.1769851]
[1728661831873,0.000819,62217.0,62216.0,0.1819851]
[1728661832076,0.000819,62217.0,62216.0,0.1849851]
[1728661832298,0.000819,62217.0,62216.0,0.1769851]
[1728661832790,0.000819,62217.0,62216.0,0.1899851]
[1728661844622,0.000819,62217.0,62216.0,0.1769851]
[1728661845053,0.000819,62217.0,62216.0,0.1879851]
[1728661845250,0.000819,62217.0,62216.0,0.1839851]
[1728661845454,0.000819,62217.0,62216.0,0.1809851]
[1728661845798,0.000819,62217.0,62216.0,0.1839851]
[1728661848462,0.000819,62217.0,62216.0,0.1769851]
[1728661848671,0.000819,62217.0,62216.0,0.1839851]
[1728661848879,0.000819,62217.0,62216.0,0.1899851]
[1728661849100,0.000819,62217.0,62216.0,0.1829851]
[1728661849329,0.000819,62217.0,62216.0,0.1859851]
[1728661849798,0.000819,62217.0,62216.0,0.1929851]
[1728661850863,0.000819,62217.0,62216.0,0.1769851]
[1728661851287,0.000819,62217.0,62216.0,0.1839851]
[1728661851432,0.000819,62217.0,62216.0,0.1799851]
[1728661851657,0.000819,62217.0,62216.0,0.1859851]
[1728661852034,0.000819,62217.0,62216.0,0.1929851]
[1728661852437,0.000819,62217.0,62216.0,0.1769851]
[1728661852635,0.000819,62217.0,62216.0,0.4194113]
[1728661852839,0.000819,62217.0,62216.0,0.1879851]
[1728661854003,0.000819,62217.0,62216.0,0.0272551]
[1728661854220,0.000819,62217.0,62216.0,0.0162551]
[1728661854382,0.000819,62217.0,62216.0,0.0322551]
[1728661854595,0.000819,62217.0,62216.0,0.17673]
[1728661854853,0.000819,62217.0,62216.0,0.18392353]
[1728661855015,0.000819,62217.0,62216.0,0.18292353]
[1728661855397,0.000819,62217.0,62216.0,0.18792353]
[1728661859238,0.000819,62217.0,62216.0,0.02719353]
[1728661860390,0.000819,62217.0,62216.0,0.02219353]
[1728661860625,0.000819,62217.0,62216.0,0.01619353]
[1728661860856,0.000819,62217.0,62216.0,0.17892353]
[1728661861107,0.000819,62217.0,62216.0,0.16273]
[1728661861346,0.000819,62217.0,62216.0,0.17900686]
[1728661861590,0.000819,62217.0,62216.0,0.17700686]
[1728661863711,0.000819,62217.0,62216.0,0.17800686]
[1728661863934,0.000819,62217.0,62216.0,0.26010686]
[1728661864617,0.000819,62217.0,62216.0,0.25910686]
[1728661864870,0.000819,62217.0,62216.0,0.26410686]
[1728661865104,0.000819,62217.0,62216.0,0.26810686]
[1728661865326,0.000819,62217.0,62216.0,0.26310686]
[1728661866784,0.000819,62217.0,62216.0,0.26610686]
[1728661867478,0.000819,62217.0,62216.0,0.26310686]
[1728661867707,0.000819,62217.0,62216.0,0.25910686]
[1728661868177,0.000819,62217.0,62216.0,0.26710686]
[1728661868390,0.000819,62217.0,62216.0,0.58064267]
[1728661868616,0.000819,62217.0,62216.0,0.62714642]
[1728661868830,0.000819,62217.0,62216.0,0.57942838]
[1728661869043,0.000819,62217.0,62216.0,0.64900544]
[1728661869259,1e-06,62217.0,62216.0,0.76371977]
[1728661869498,1e-06,62218.0,62217.0,0.443127]
[1728661869711,1e-06,62218.0,62217.0,0.95130117]
[1728661869954,1e-06,62218.0,62217.0,0.88406649]
[1728661870181,1e-06,62218.0,62217.0,0.97950258]
[1728661870420,1e-06,62218.0,62217.0,1.16858403]
[1728661870653,1e-06,62218.0,62217.0,0.89806649]
[1728661870854,1e-06,62218.0,62217.0,1.08714794]
[1728661871096,1e-06,62218.0,62217.0,1.00750258]
[1728661871308,1e-06,62218.0,62217.0,1.02150258]
[1728661871517,1e-06,62218.0,62217.0,1.17253302]
[1728661871730,1e-06,62218.0,62217.0,1.14874256]
[1728661871941,1e-06,62218.0,62217.0,1.16274256]
[1728661872647,1e-06,62218.0,62217.0,0.90138094]
[1728661872890,1e-06,62218.0,62217.0,1.09046239]
[1728661873112,1e-06,62218.0,62217.0,1.66308307]
[1728661873386,1e-06,62218.0,62217.0,1.55139639]
[1728661873802,1e-06,62218.0,62217.0,1.59895987]
[1728661874015,1e-06,62218.0,62217.0,1.62273689]
[1728661874661,1e-06,62218.0,62217.0,1.50288086]
[1728661874877,1e-06,62218.0,62217.0,1.22682094]
[1728661875099,1e-06,62218.0,62217.0,1.22882094]
[1728661875317,1e-06,62218.0,62217.0,1.27637141]
[1728661875531,1e-06,62218.0,62217.0,1.27436296]
[1728661875751,1e-06,62218.0,62217.0,1.27636296]
[1728661875960,1e-06,62218.0,62217.0,0.95092296]
[1728661876172,1e-06,62218.0,62217.0,2.22903196]
[1728661876375,1e-06,62218.0,62217.0,2.09507196]
[1728661876582,1e-06,62218.0,62217.0,2.04752994]
[1728661876804,1e-06,62218.0,62217.0,2.04952994]
[1728661877247,1e-06,62218.0,62217.0,2.09707196]
[1728661877507,1e-06,62218.0,62217.0,2.04752994]
[1728661877724,1e-06,62218.0,62217.0,0.94325049]
[1728661877939,1e-06,62218.0,62217.0,1.56383959]
[1728661878167,1e-06,62218.0,62217.0,1.32141339]
[1728661878470,1e-06,62218.0,62217.0,1.37095541]
[1728661878895,1e-06,62218.0,62217.0,1.35695541]
[1728661879321,1e-06,62218.0,62217.0,1.32895541]
[1728661879527,1e-06,62218.0,62217.0,1.29541339]
[1728661879738,1e-06,62218.0,62217.0,1.10433194]
[1728661879988,1e-06,62218.0,62217.0,1.09033194]
[1728661880217,1e-06,62218.0,62217.0,1.10433194]
[1728661880452,1e-06,62218.0,62217.0,1.09033194]
[1728661880697,1e-06,62218.0,62217.0,0.87338094]
[1728661880926,1e-06,62218.0,62217.0,0.83768343]
[1728661881172,1e-06,62218.0,62217.0,0.82368343]
[1728661881675,1e-06,62218.0,62217.0,0.71888343]
[1728661881926,1e-06,62218.0,62217.0,0.73288343]
[1728661882377,1e-06,62218.0,62217.0,0.71888343]
[1728661882601,1e-06,62218.0,62217.0,0.70488343]
[1728661882848,1e-06,62218.0,62217.0,0.72988343]
[1728661883075,1e-06,62218.0,62217.0,0.63828343]
[1728661883574,1e-06,62218.0,62217.0,0.64928343]
[1728661884020,1e-06,62218.0,62217.0,0.63828343]
[1728661884237,1e-06,62218.0,62217.0,0.64828343]
[1728661884424,1e-06,62218.0,62217.0,0.64992143]
[1728661884652,1e-06,62218.0,62217.0,0.48869742]
[1728661885968,1e-06,62218.0,62217.0,0.38869742]
[1728661888564,1e-06,62218.0,62217.0,0.97644763]
[1728661888817,1e-06,62218.0,62217.0,2.29202843]
[1728661889037,1e-06,62218.0,62217.0,1.70803025]
[1728661889467,1e-06,62218.0,62217.0,1.6970284]
[1728661889677,1e-06,62218.0,62217.0,1.5969984]
[1728661889887,1e-06,62218.0,62217.0,0.73902143]
[1728661890096,1e-06,62218.0,62217.0,0.72502143]
[1728661890317,1e-06,62218.0,62217.0,0.70487435]
[1728661890526,1e-06,62218.0,62217.0,0.73287435]
[1728661891130,1e-06,62218.0,62217.0,0.70487435]
[1728661891334,1e-06,62218.0,62217.0,0.71887435]
[1728661891577,1e-06,62218.0,62217.0,0.73287435]
[1728661892629,1e-06,62218.0,62217.0,0.71887435]
[1728661893085,1e-06,62218.0,62217.0,0.30046889]
[1728661893295,1e-06,62218.0,62217.0,0.17246889]
[1728661893556,1e-06,62218.0,62217.0,0.18646889]
[1728661894404,0.023,62228.0,62217.0,0.01174189]
[1728661894611,0.023,62228.0,62217.0,0.02574189]
[1728661894828,0.0300631,62227.0,62217.0,0.03874189]
[1728661895038,0.01503155,62226.0,62217.0,0.02474189]
[1728661895251,0.01503155,62225.0,62217.0,0.02474189]
[1728661895466,0.01503155,62224.0,62217.0,0.03674189]
[1728661895687,0.01503155,62223.0,62218.0,0.482173]
[1728661895902,0.023,62231.0,62226.0,0.160703]
[1728661896169,0.023,62229.0,62226.0,0.160703]
[1728661896376,0.18422401,62231.0,62227.0,0.57388383]
[1728661896377,0.05306718,62228.0,62227.0,0.57388383]
[1728661896586,0.05306718,62228.0,62227.0,0.49215863]
[1728661896587,0.03803359,62228.0,62227.0,0.49215863]
[1728661896821,0.03006374,62228.0,62227.0,0.49215863]
[1728661897036,0.01503187,62228.0,62227.0,0.49215863]
[1728661897889,0.01503187,62228.0,62227.0,0.49415863]
[1728661898709,0.0165594,62232.0,62227.0,0.33545763]
[1728661898956,0.0165594,62232.0,62231.0,0.160691]
[1728661899140,0.03159152,62232.0,62231.0,0.160691]
[1728661899407,0.03159152,62232.0,62231.0,0.17072895]
[1728661900700,0.03159152,62232.0,62231.0,0.17372895]
[1728661902067,0.03159152,62232.0,62231.0,0.17672895]
[1728661902718,0.03159152,62232.0,62231.0,0.17372895]
[1728661903159,0.03159152,62232.0,62231.0,0.17672895]
[1728661903371,0.03159152,62232.0,62231.0,0.17372895]
[1728661903587,0.03159152,62232.0,62231.0,0.17772895]
[1728661904246,0.03159314,62232.0,62231.0,0.17472895]
[1728661904459,0.03159314,62232.0,62231.0,0.17372895]
[1728661904677,0.03159314,62232.0,62231.0,0.17772895]
[1728661904896,0.0165594,62232.0,62231.0,0.17472895]
[1728661905114,0.03159433,62232.0,62231.0,0.17472895]
[1728661905328,0.03159433,62232.0,62231.0,0.17872895]
[1728661905755,0.03159433,62232.0,62231.0,0.17472895]
[1728661906440,0.03159433,62232.0,62231.0,0.17872895]
[1728661906898,0.0165594,62232.0,62231.0,0.17872895]
[1728661907113,0.0165594,62232.0,62231.0,0.17472895]
[1728661907338,0.03159689,62232.0,62231.0,0.17072895]
[1728661907557,0.03159689,62232.0,62231.0,0.17372895]
[1728661907760,0.03159689,62232.0,62231.0,0.17672895]
[1728661908202,0.03159689,62232.0,62231.0,0.17372895]
[1728661908420,0.03159689,62232.0,62231.0,0.17672895]
[1728661908829,0.03159689,62232.0,62231.0,0.17372895]
[1728661909067,0.03241589,62232.0,62231.0,0.17072895]
[1728661909285,0.03241589,62232.0,62231.0,0.17472895]
[1728661909508,0.03241589,62232.0,62231.0,0.17772895]
[1728661910633,0.03241589,62232.0,62231.0,0.17072895]
[1728661910855,0.03241589,62232.0,62231.0,0.17372895]
[1728661911077,0.03241589,62232.0,62231.0,0.17772895]
[1728661911518,0.03241589,62232.0,62231.0,0.17472895]
[1728661911737,0.03241589,62232.0,62231.0,0.17872895]
[1728661912175,0.03241589,62232.0,62231.0,0.17472895]
[1728661912378,0.03241589,62232.0,62231.0,0.17072895]
[1728661912596,0.03241589,62232.0,62231.0,0.17472895]
[1728661912811,0.05649339,62232.0,62231.0,0.17472895]
[1728661912967,0.03241589,62232.0,62231.0,0.17472895]
[1728661913401,0.05649387,62232.0,62231.0,0.17472895]
[1728661914625,0.05649387,62232.0,62231.0,0.41715515]
[1728661914840,0.05649387,62232.0,62231.0,0.17472895]
[1728661915092,0.03241589,62232.0,62231.0,0.17472895]
[1728661915552,0.03241589,62232.0,62231.0,0.25362895]
[1728661915771,0.03241589,62232.0,62231.0,0.25684263]
[1728661915977,0.03241589,62232.0,62231.0,0.25684246]
[1728661916111,0.0173784,62232.0,62231.0,0.25162895]
[1728661916343,0.0173784,62232.0,62231.0,0.25284246]
[1728661916549,0.0173784,62232.0,62231.0,0.26084246]
[1728661916748,0.0173784,62232.0,62231.0,0.25284246]
[1728661916949,0.0173784,62232.0,62231.0,0.44192391]
[1728661917151,0.0173784,62232.0,62231.0,0.4477104]
[1728661917990,0.0173784,62232.0,62231.0,0.4527104]
[1728661918411,0.0173784,62232.0,62231.0,0.4437104]
[1728661918625,0.0173784,62232.0,62231.0,0.4387104]
[1728661918838,0.0173784,62232.0,62231.0,0.4557104]
[1728661919053,0.0173784,62232.0,62231.0,0.4467104]
[1728661919272,0.0173784,62232.0,62231.0,0.4577104]
[1728661919489,0.0173784,62232.0,62231.0,0.4387104]
[1728661919718,0.0173784,62232.0,62231.0,0.4507104]
[1728661919931,0.0173784,62232.0,62231.0,0.4627104]
[1728661920160,0.0173784,62232.0,62231.0,0.4507104]
[1728661920610,0.0173784,62232.0,62231.0,0.4617104]
[1728661921281,0.0173784,62232.0,62231.0,0.4497104]
[1728661921524,0.0173784,62232.0,62231.0,0.4597104]
[1728661925248,0.0173784,62232.0,62231.0,0.19172895]
[1728661925960,0.0173784,62232.0,62231.0,0.3808104]
[1728661930843,0.0173784,62232.0,62231.0,0.4624104]
[1728661932005,0.0173784,62232.0,62231.0,0.4524104]
[1728661932442,0.0173784,62232.0,62231.0,0.4634104]
[1728661932676,0.0173784,62232.0,62231.0,0.4524104]
[1728661933167,0.0173784,62232.0,62231.0,0.4644104]
[1728661933818,0.0173784,62232.0,62231.0,0.4524104]
[1728661934065,0.0173784,62232.0,62231.0,0.4634104]
[1728661934888,0.0173784,62232.0,62231.0,0.4524104]
[1728661935121,0.0173784,62232.0,62231.0,0.4624104]
[1728661940820,0.0173784,62232.0,62231.0,0.3017194]
[1728661941074,0.0173784,62232.0,62231.0,0.4624104]
[1728661942766,0.0173784,62232.0,62231.0,0.19172895]
[1728661943528,0.0173784,62232.0,62231.0,0.18072895]
[1728661943774,0.0173784,62232.0,62231.0,0.19472895]
[1728661944008,0.0173784,62232.0,62231.0,0.18072895]